lending/lending_fUSD_20260206
["ID","MTS","AMOUNT","RATE_DAILY","PERIOD"]
[404637389,1770366279292,151.0,0.00044098,120]
[404637390,1770366279816,172.254549,0.00044098,120]
[404637391,1770366307376,151.0,0.00044098,120]
[404637392,1770366307697,151.0,0.00044098,120]
[404637393,1770366308004,151.0,0.00044098,120]
[404637394,1770366308305,151.0,0.00044098,120]
[404637395,1770366331855,151.0,0.00044098,90]
[404637396,1770366331982,151.0,0.00044098,120]
[404637397,1770366332138,151.0,0.00044098,90]
[404637398,1770366332299,151.0,0.00044098,120]
[404637399,1770366332425,151.0,0.00044098,90]
[404637400,1770366332622,276.791234,0.00044098,120]
[404637401,1770366332719,151.0,0.00044098,90]
[404637402,1770366333006,151.0,0.00044098,90]
[404637403,1770366333290,151.0,0.00044098,90]
[404637404,1770366333571,151.0,0.00044098,90]
[404637405,1770366333894,151.0,0.00044098,90]
[404637406,1770366334175,151.0,0.00044098,90]
[404637407,1770366334483,151.0,0.00044098,90]
[404637408,1770366334769,151.0,0.00044098,90]
[404637409,1770366335190,151.0,0.00044098,90]
[404637410,1770366335470,151.0,0.00044098,90]
[404637411,1770366335763,151.0,0.00044098,90]
[404637412,1770366336049,151.0,0.00044098,90]
[404637413,1770366336362,151.0,0.00044098,90]
[404637414,1770366336748,203.711706,0.00044098,90]
[404637415,1770366344131,1051.95694252,0.0001995,15]
[404637416,1770366349697,151.0,0.00044098,120]
[404637417,1770366350020,151.0,0.00044098,120]
[404637418,1770366358058,5000.01,8e-05,2]
[404637419,1770366358082,5000.01,8e-05,2]
[404637420,1770366358105,2302.84126728,8e-05,2]
[404637422,1770366466791,225.0,0.00044098,36]
[404637423,1770366471473,2000.0,0.00044098,120]
[404637424,1770366492254,392.17100268,7.888e-05,2]
[404637425,1770366497602,3000.0,0.00044098,120]
[404637426,1770366508534,152.53250839,0.0002041,30]
[404637427,1770366557108,-250.0,0.00013328,2]
[404637428,1770366557129,-150.0,0.00013362,2]
[404637429,1770366557149,-250.0,0.0001345,2]
[404637430,1770366557169,-215.71529566,0.00013516,2]
[404637431,1770366557191,-4290.0127032,0.00013527,2]
[404637432,1770366571617,-1259.71972,0.00013459,2]
[404637433,1770366571641,-7847.48354082,0.00013527,2]
[404637434,1770366571665,-522.89229442,0.00013527,2]
[404637435,1770366571688,-9557.91379773,0.00013527,2]
[404637436,1770366571711,-150.0,0.000136,2]
[404637437,1770366571733,-150.0,0.000136,2]
[404637438,1770366571757,-400.0,0.000136,4]
[404637439,1770366571781,-338.3,0.00013617,2]
[404637440,1770366571804,-151.0,0.00013624,2]
[404637441,1770366571826,-300.0,0.00013626,2]
[404637442,1770366571850,-1200.0,0.00013626,2]
[404637443,1770366571871,-215.71529565,0.00013626,2]
[404637444,1770366571896,-258.64432157,0.00013626,2]
[404637445,1770366571920,-500.0,0.00013626,2]
[404637446,1770366571943,-259.92056179,0.00013626,2]
[404637447,1770366571969,-500.0,0.00013626,2]
[404637448,1770366571996,-524.07150711,0.00013626,2]
[404637449,1770366572031,-152.03924394,0.00013626,2]
[404637450,1770366572057,-200.0,0.00013626,2]
[404637451,1770366572089,-500.0,0.00013626,2]
[404637452,1770366572123,-500.0,0.00013626,2]
[404637453,1770366572154,-500.0,0.00013626,2]
[404637454,1770366572190,-500.0,0.00013626,2]
[404637455,1770366572222,-500.0,0.00013626,2]
[404637456,1770366572257,-500.0,0.00013626,2]
[404637457,1770366572288,-500.0,0.00013626,2]
[404637458,1770366572316,-500.0,0.00013626,2]
[404637459,1770366572344,-500.0,0.00013626,2]
[404637460,1770366572372,-500.0,0.00013626,2]
[404637461,1770366572398,-500.0,0.00013626,2]
[404637462,1770366572424,-500.0,0.00013626,2]
[404637463,1770366572452,-500.0,0.00013626,2]
[404637464,1770366572479,-500.0,0.00013626,2]
[404637465,1770366572509,-500.0,0.00013626,2]
[404637466,1770366572541,-500.0,0.00013626,2]
[404637467,1770366572569,-500.0,0.00013626,2]
[404637468,1770366572596,-500.0,0.00013626,2]
[404637469,1770366572624,-500.0,0.00013626,2]
[404637470,1770366572653,-500.0,0.00013626,2]
[404637471,1770366572679,-500.0,0.00013626,2]
[404637472,1770366572709,-500.0,0.00013626,2]
[404637473,1770366572738,-500.0,0.00013626,2]
[404637474,1770366572770,-500.0,0.00013626,2]
[404637475,1770366572800,-500.0,0.00013626,2]
[404637476,1770366572827,-500.0,0.00013626,2]
[404637477,1770366572855,-500.0,0.00013626,2]
[404637478,1770366572882,-500.0,0.00013626,2]
[404637479,1770366572909,-500.0,0.00013626,2]
[404637480,1770366572937,-312.54739301,0.00013626,2]
[404637481,1770366572965,-500.0,0.00013626,2]
[404637482,1770366572993,-500.0,0.00013626,2]
[404637483,1770366573029,-500.0,0.00013626,2]
[404637484,1770366573057,-500.0,0.00013626,2]
[404637485,1770366573091,-500.0,0.00013626,2]
[404637486,1770366573382,-500.0,0.00013626,2]
[404637487,1770366573426,-500.0,0.00013626,2]
[404637488,1770366573455,-500.0,0.00013626,2]
[404637489,1770366573482,-500.0,0.00013626,2]
[404637490,1770366573510,-500.0,0.00013626,2]
[404637491,1770366573537,-500.0,0.00013626,2]
[404637492,1770366573565,-500.0,0.00013626,2]
[404637493,1770366573595,-500.0,0.00013626,2]
[404637494,1770366573623,-500.0,0.00013626,2]
[404637495,1770366573651,-500.0,0.00013626,2]
[404637496,1770366573679,-500.0,0.00013626,2]
[404637497,1770366573706,-500.0,0.00013626,2]
[404637498,1770366573735,-500.0,0.00013626,2]
[404637499,1770366573766,-500.0,0.00013626,2]
[404637500,1770366573788,-13097.6,0.00013627,2]
[404637501,1770366573810,-165.4252,0.00013627,2]
[404637502,1770366573838,-137936.72712396,0.00013627,2]
[404637510,1770366632129,-300.0,0.00013057,2]
[404637511,1770366632140,-51.5299975,0.00013057,2]
[404637512,1770366632208,-1148.4700025,0.00013057,2]
[404637513,1770366632219,-250.0,0.00013057,2]
[404637514,1770366632228,-19770.5768126,0.00013058,2]
[404637515,1770366632284,-3602.7131874,0.00013058,2]
[404637516,1770366632294,-912.38209832,0.00013527,2]
[404637517,1770366632304,-2709.48971538,0.00013527,2]
[404637535,1770366638387,-1659.2979167,0.00013527,2]
[404637537,1770366638397,-2189.15451992,0.00013527,2]
[404637539,1770366638407,-430.87151134,0.00013527,2]
[404637541,1770366638418,-202.649881,0.00013527,2]
[404637543,1770366638429,-150.0,0.00013626,2]
[404637546,1770366638440,-4123.751,0.00013626,2]
[404637549,1770366638463,-91369.89234876,0.00013627,2]
[404637551,1770366638529,-300.0,0.00013627,2]
[404637582,1770366640328,-289.07426742,0.00013627,2]
[404637583,1770366640525,-14999.968152,0.00013627,2]
[404637601,1770366646246,-906.80525696,0.00013627,2]
[404637612,1770366647533,-7629.51241606,0.00013627,2]
[404637613,1770366647548,-5059.00222242,0.00013627,2]
[404637614,1770366647620,-5315.12284398,0.00013627,2]
[404637624,1770366682853,-202.0,0.00013626,2]
[404637625,1770366798579,500.0,0.00044098,120]
[404637626,1770366806564,500.0,0.00044098,120]
[404637627,1770366807256,500.0,0.00044098,120]
[404637628,1770366807955,500.0,0.00044098,120]
[404637629,1770366809616,2071.59,0.00035616,120]
[404637630,1770366846216,200.0,0.00044098,120]
[404637631,1770366846594,500.0,0.00044098,120]
[404637632,1770366847297,500.0,0.00044098,120]
[404637633,1770366847376,200.0,0.00044098,120]
[404637634,1770366847980,500.0,0.00044098,120]
[404637635,1770366848072,200.0,0.00044098,120]
[404637636,1770366848707,200.0,0.00044098,120]
[404637637,1770366848789,500.0,0.00044098,120]
[404637638,1770366848961,520.0,0.00044098,120]
[404637639,1770366849387,200.0,0.00044098,120]
[404637640,1770366849462,500.0,0.00044098,120]
[404637641,1770366849560,3974.89234889,0.00044098,120]
[404637642,1770366849653,539.24,0.00044098,120]
[404637643,1770366850065,200.0,0.00044098,120]
[404637644,1770366850335,559.19188,0.00044098,120]
[404637645,1770366850526,503.88757632,0.00044098,120]
[404637646,1770366850799,200.0,0.00044098,120]
[404637647,1770366851018,579.88197956,0.00044098,120]
[404637648,1770366851486,200.0,0.00044098,120]
[404637649,1770366851704,601.3376128,0.00044098,120]
[404637650,1770366852051,151.0,0.00044098,120]
[404637651,1770366852213,200.0,0.00044098,120]
[404637652,1770366852759,157.0080866,0.00044098,120]
[404637653,1770366853028,151.0,0.00044098,120]
[404637654,1770366853108,623.58710448,0.00044098,120]
[404637655,1770366853481,151.0,0.00044098,120]
[404637656,1770366853565,646.65982734,0.00044098,120]
[404637657,1770366854271,670.58624095,0.00044098,120]
[404637658,1770366854370,151.0,0.00044098,120]
[404637659,1770366854956,670.58624095,0.00044098,120]
[404637660,1770366855048,151.0,0.00044098,120]
[404637661,1770366855267,250.0,0.00044098,120]
[404637662,1770366855748,151.0,0.00044098,120]
[404637663,1770366855958,250.0,0.00044098,120]
[404637664,1770366856681,250.0,0.00044098,120]
[404637665,1770366857944,250.0,0.00044098,120]
[404637666,1770366858078,250.0,0.00044098,120]
[404637667,1770366858661,250.0,0.00044098,120]
[404637668,1770366858781,250.0,0.00044098,120]
[404637669,1770366859395,250.0,0.00044098,120]
[404637670,1770366862116,503.98277457,0.00044098,120]
[404637671,1770366882061,10000.0,0.00035616,120]
[404637672,1770366908687,5000.0,0.00035616,120]
[404637674,1770366977955,150.0,0.00044098,30]
[404637675,1770366980530,160.0,0.00035616,120]
[404637676,1770367032394,1103.0,0.00044098,30]
[404637677,1770367032481,500.0,0.00044098,120]
[404637678,1770367033219,500.0,0.00044098,120]
[404637679,1770367033903,500.0,0.00044098,120]
[404637680,1770367034585,500.0,0.00044098,120]
[404637681,1770367034807,1069.22397542,0.00044098,30]
[404637682,1770367037252,1103.0,0.00044098,30]
[404637684,1770367086620,151.0,0.00044098,120]
[404637685,1770367087320,151.0,0.00044098,120]
[404637686,1770367088007,151.0,0.00044098,120]
[404637687,1770367090077,500.0,0.00044098,120]
[404637688,1770367090292,250.0,0.00044098,120]
[404637689,1770367090787,500.0,0.00044098,120]
[404637690,1770367090927,250.0,0.00044098,120]
[404637691,1770367091486,500.0,0.00044098,120]
[404637692,1770367091569,250.0,0.00044098,120]
[404637693,1770367092281,250.0,0.00044098,120]
[404637694,1770367092844,500.0,0.00044098,120]
[404637695,1770367093648,500.0,0.00044098,120]
[404637696,1770367094290,500.0,0.00044098,120]
[404637697,1770367102753,-9058.17454643,0.00013254,2]
[404637698,1770367102773,-2912.52508806,0.00013254,2]
[404637699,1770367102798,-300.0,0.00013326,2]
[404637700,1770367102823,-237729.30036551,0.00013327,2]
[404637701,1770367103429,230.21,0.00044098,30]
[404637702,1770367150250,273.38283874,0.00044098,120]
[404637703,1770367278395,-1142.77,0.0001273,2]
[404637704,1770367278419,-500.0,0.00012907,2]
[404637705,1770367278441,-256.0,0.00012907,2]
[404637706,1770367278461,-1157.62032664,0.00013253,2]
[404637707,1770367278483,-1200.0,0.00013253,2]
[404637708,1770367278505,-823.57512796,0.00013254,2]
[404637709,1770367278526,-1941.68339204,0.00013255,2]
[404637710,1770367278546,-254.41914612,0.00013255,2]
[404637711,1770367278568,-1764.17215333,0.00013255,2]
[404637712,1770367278589,-1123.0,0.00013288,2]
[404637713,1770367278610,-158.82731812,0.00013317,2]
[404637714,1770367278631,-300.0,0.00013325,2]
[404637715,1770367278652,-300.0,0.00013325,2]
[404637716,1770367278674,-150.0,0.00013326,2]
[404637717,1770367278697,-181.94439326,0.00013326,2]
[404637718,1770367278722,-181.0510251,0.00013326,2]
[404637719,1770367278745,-500.0,0.00013326,2]
[404637720,1770367278767,-566.85005498,0.00013326,2]
[404637721,1770367278793,-500.0,0.00013326,2]
[404637722,1770367278818,-500.0,0.00013326,2]
[404637723,1770367278843,-500.0,0.00013326,2]
[404637724,1770367278868,-500.0,0.00013326,2]
[404637725,1770367278893,-431.25473931,0.00013326,2]
[404637726,1770367278921,-500.0,0.00013326,2]
[404637727,1770367278945,-500.0,0.00013326,2]
[404637728,1770367278971,-270.13941548,0.00013326,2]
[404637729,1770367278996,-500.0,0.00013326,2]
[404637730,1770367279020,-500.0,0.00013326,2]
[404637731,1770367279045,-500.0,0.00013326,2]
[404637732,1770367279072,-482296.69290766,0.00013327,2]
[404637733,1770367310880,162.93,0.0003561,120]
[404637734,1770367319609,1961.055,0.00035616,120]
[404637735,1770367347353,4000.0,0.00044097,30]
[404637736,1770367385991,-300.0,0.00013254,2]
[404637737,1770367386014,-10923.74661969,0.00013255,2]
[404637738,1770367386038,-433.89380898,0.00013278,2]
[404637739,1770367386060,-278.73823344,0.000133,2]
[404637740,1770367386080,-164.2273867,0.00013317,2]
[404637741,1770367386101,-412.71,0.00013326,2]
[404637742,1770367386121,-5646.271,0.00013326,2]
[404637743,1770367386141,-458.854,0.00013326,2]
[404637744,1770367386180,-500.0,0.00013326,2]
[404637745,1770367386202,-1294.4555947,0.00013327,2]
[404637746,1770367386227,-29587.10335649,0.00013327,2]
[404637753,1770367474424,200.21,0.00044095,30]
[404637756,1770367513986,31276.43682204,0.00044095,120]
[404637757,1770367607090,10907.48644769,0.00044095,120]
[404637758,1770367638461,400.0,0.000126,4]
[404637759,1770367640576,900.0,0.000127,4]
[404637760,1770367642666,1300.0,0.000128,4]
[404637761,1770367644846,1800.0,0.000129,4]
[404637762,1770367661186,272.6,0.00044095,120]
[404637763,1770367715215,46348.54,0.00044092,120]
[404637764,1770367756896,560.26,0.00044092,30]
[404637765,1770367757107,150.45,0.00044092,30]
[404637766,1770367820501,151.0,0.00044092,120]
[404637767,1770367821175,156.587,0.00044092,120]
[404637768,1770367821879,162.380719,0.00044092,120]
[404637769,1770367822776,168.3888056,0.00044092,120]
[404637770,1770367823528,174.61919141,0.00044092,120]
[404637771,1770367824277,181.08010149,0.00044092,120]
[404637772,1770367824983,187.78006525,0.00044092,120]
[404637773,1770367825685,194.72792766,0.00044092,120]
[404637774,1770367826387,201.93286099,0.00044092,120]
[404637785,1770367831310,-180.90687264,0.00013027,2]
[404637786,1770367831324,-1176.1147689,0.00013027,2]
[404637787,1770367831337,-375.67822692,0.00013027,2]
[404637788,1770367831349,-720.628237,0.00013126,2]
[404637789,1770367831360,-1200.0,0.00013126,2]
[404637790,1770367831369,-199.80545501,0.00013126,2]
[404637791,1770367831380,-500.0,0.00013126,2]
[404637792,1770367831396,-246.79503848,0.00013126,2]
[404637793,1770367831407,-500.0,0.00013126,2]
[404637794,1770367831417,-488.00000298,0.00013126,2]
[404637795,1770367831431,-246.58269065,0.00013127,2]
[404637796,1770367831448,-8152.35709176,0.00013127,2]
[404637797,1770367831463,-9831.37195764,0.00013127,2]
[404637798,1770367831474,-48912.60336527,0.00013127,2]
[404637799,1770367831487,-13600.65641629,0.00013127,2]
[404637800,1770367831502,-1802.15191347,0.00013127,2]
[404637806,1770367837344,-862.97039646,0.00013027,2]
[404637807,1770367837354,-500.0,0.00013126,2]
[404637808,1770367837364,-500.0,0.00013126,2]
[404637809,1770367837373,-488.00000298,0.00013126,2]
[404637810,1770367837384,-203.86025789,0.00013127,2]
[404637811,1770367837398,-356.56447033,0.00013127,2]
[404637812,1770367837410,-18005.3933661,0.00013127,2]
[404638003,1770367839611,-428.47778072,0.00013127,2]
[404638125,1770367843192,-324.145,0.00013127,2]
[404638127,1770367843299,-32475.0,0.00013127,2]
[404638128,1770367843312,-13763.4,0.00013127,2]
[404638129,1770367844134,-59.32506702,0.00013127,2]
[404638142,1770367845668,-517.62020965,0.00013127,2]
[404638143,1770367845680,-386.1600001,0.00013127,2]
[404638144,1770367845692,-1498.2,0.00013127,2]
[404638147,1770367877380,200.0,0.00034,120]
[404638148,1770367881543,400.4,0.00044092,30]
[404638149,1770367887550,519.4911356,0.00044092,120]
[404638150,1770367892155,2082.0,0.00035589,120]
[404638151,1770367910510,200.0,0.00034,120]
[404638152,1770367913762,31620.72770968,0.00044092,120]
[404638153,1770367938349,307.80385251,0.00044092,30]
[404638154,1770367954359,1103.0,0.00044092,30]
[404638155,1770367955691,202.29846219,0.00044092,120]
[404638156,1770367956782,1103.0,0.00044092,30]
[404638157,1770367959232,1103.0,0.00044092,30]
[404638158,1770367959884,6000.0,0.00044092,30]
[404638159,1770367961710,1103.0,0.00044092,30]
[404638160,1770367964180,1146.59500336,0.00044092,30]
[404638162,1770368023891,4932.0,0.00035616,120]
[404638166,1770368055177,151.01,0.00030411,120]
[404638167,1770368112200,249.43994198,0.00044092,120]
[404638168,1770368115339,200.0,0.00044092,120]
[404638169,1770368115959,200.0,0.00044092,120]
[404638170,1770368120699,1000.0,0.00044092,120]
[404638171,1770368120931,605.59208121,0.00044092,120]
[404638172,1770368121383,1000.0,0.00044092,120]
[404638173,1770368122076,1000.0,0.00044092,120]
[404638174,1770368122762,1000.0,0.00044092,120]
[404638175,1770368123456,1000.0,0.00044092,120]
[404638176,1770368126792,151.0,0.00044092,120]
[404638177,1770368127441,151.0,0.00044092,120]
[404638178,1770368132747,174.61919141,0.00044092,120]
[404638179,1770368136680,333.7107,0.00044092,120]
[404638180,1770368166664,151.0,0.00044092,120]
[404638181,1770368167373,156.587,0.00044092,120]
[404638182,1770368168172,162.380719,0.00044092,120]
[404638183,1770368168886,168.3888056,0.00044092,120]
[404638184,1770368169750,174.61919141,0.00044092,120]
[404638185,1770368170275,181.08010149,0.00044092,120]
[404638186,1770368170961,187.78006525,0.00044092,120]
[404638187,1770368171716,194.72792766,0.00044092,120]
[404638188,1770368172487,201.93286099,0.00044092,120]
[404638189,1770368173207,209.40437684,0.00044092,120]
[404638190,1770368173937,217.15233878,0.00044092,120]
[404638191,1770368174800,225.18697532,0.00044092,120]
[404638192,1770368175907,233.51889341,0.00044092,120]
[404638193,1770368182628,500.0,0.00044092,120]
[404638194,1770368183584,242.15909246,0.00044092,120]
[404638195,1770368186675,251.11897888,0.00044092,120]
[404638196,1770368187371,260.4103811,0.00044092,120]
[404638197,1770368188068,270.0455652,0.00044092,120]
[404638198,1770368188752,280.03725112,0.00044092,120]
[404638199,1770368189453,290.39862941,0.00044092,120]
[404638200,1770368190184,290.39862941,0.00044092,120]
[404638201,1770368197785,200.21,0.00044092,30]
[404638202,1770368221773,5888.0,0.00035616,120]
[404638203,1770368225144,5888.0,0.00035616,120]
[404638204,1770368228406,5888.0,0.00035616,120]
[404638205,1770368231765,5888.0,0.00035616,120]
[404638206,1770368235980,5888.0,0.00035616,120]
[404638207,1770368239233,5888.0,0.00035616,120]
[404638208,1770368242627,3965.0,0.00035616,120]
[404638209,1770368272356,1103.0,0.00044092,30]
[404638210,1770368275339,1103.0,0.00044092,30]
[404638211,1770368277830,1103.0,0.00044092,30]
[404638212,1770368280526,1103.0,0.00044092,30]
[404638213,1770368282983,1103.0,0.00044092,30]
[404638214,1770368292148,500.0,0.00044092,120]
[404638215,1770368295518,300.0,0.00044092,120]
[404638216,1770368296631,300.0,0.00044092,120]
[404638217,1770368313457,151.0,0.00044092,120]
[404638218,1770368314150,151.0,0.00044092,120]
[404638219,1770368317948,151.0,0.00044092,120]
[404638220,1770368318640,156.587,0.00044092,120]
[404638221,1770368319336,162.380719,0.00044092,120]
[404638222,1770368320014,168.3888056,0.00044092,120]
[404638223,1770368320708,174.61919141,0.00044092,120]
[404638224,1770368329304,-684.28,0.00011233,2]
[404638225,1770368329352,-5371.14894598,0.00011233,2]
[404638226,1770368329489,-3260.30105402,0.00011233,2]
[404638227,1770368352595,161.94961622,0.00044092,120]
[404638228,1770368398069,1000.0,0.00044092,30]
[404638229,1770368398784,1000.0,0.00044092,30]
[404638230,1770368399517,1000.0,0.00044092,30]
[404638231,1770368400214,903.78077785,0.00044092,30]
[404638232,1770368426620,199.74721514,0.00044092,120]
[404638233,1770368450199,1000.0,0.00035,120]
[404638234,1770368456609,260.26,0.00044096,30]
[404638239,1770368497227,160.16,0.00044096,30]
[404638240,1770368544978,163.03002046,0.00044096,120]
[404638241,1770368559178,160.16,0.00044096,30]
[404638242,1770368569490,531.5106817,0.000125,10]
[404638243,1770368595712,182.93,9.57e-05,2]
[404638244,1770368646414,10000.0,0.00044098,120]
[404638245,1770368685367,481.156,0.00044098,30]
[404638246,1770368727119,320.32,0.00044098,30]
[404638247,1770368761511,150.0,0.00011296,2]
[404638248,1770368765097,381.31399237,0.0001128,2]
[404638249,1770368772224,-149.34600763,0.0001128,2]
[404638250,1770368800073,160.0,0.00035616,120]
[404638251,1770368827479,200.0,0.000125,4]
[404638252,1770368831046,400.0,0.000126,4]
[404638253,1770368833139,700.0,0.000127,4]
[404638254,1770368835230,900.0,0.000128,4]
[404638255,1770368837391,1100.0,0.000129,4]
[404638281,1770368861483,779.0,0.00035,120]
[404638282,1770368861976,200280.92,0.00044098,30]
[404638284,1770368957191,-1852.42,0.00011661,2]
[404638285,1770368957211,-171.46816465,0.00011723,2]
[404638286,1770368957231,-166.66,0.00011823,2]
[404638287,1770368957251,-171.46816465,0.00011889,2]
[404638288,1770368957272,-760.74176872,0.00011918,2]
[404638289,1770368957292,-1513.11,0.00011935,2]
[404638290,1770368957312,-552.00641198,0.00011957,2]
[404638300,1770369031532,-451.0,0.00011957,2]
[404638301,1770369031545,-510.10358802,0.00011957,2]
[404638302,1770369031555,-1513.11,0.00011979,2]
[404638303,1770369031565,-300.0,0.00011999,2]
[404638304,1770369031575,-31.15069552,0.00012,2]
[404638305,1770369031586,-1168.84930448,0.00012,2]
[404638306,1770369031596,-1513.11,0.00012001,2]
[404638307,1770369031606,-1513.11,0.00012023,2]
[404638308,1770369031616,-153.02,0.00012035,2]
[404638309,1770369031626,-1200.0,0.00012044,2]
[404638310,1770369031636,-965.01069552,0.00012045,2]
[404638311,1770369031649,-548.09930448,0.00012045,2]
[404638313,1770369031922,-1000.0,0.0001206,2]
[404638314,1770369031933,-150.0,0.00012066,2]
[404638315,1770369031943,-300.0,0.00012066,2]
[404638316,1770369031952,-300.0,0.00012066,2]
[404638317,1770369031962,-1513.11,0.00012067,2]
[404638318,1770369031974,-150.99,0.00012067,2]
[404638319,1770369031983,-150.99,0.00012067,2]
[404638320,1770369031992,-4673.50594574,0.00012067,2]
[404638321,1770369032018,-745.6569597,0.00012067,2]
[404638322,1770369032030,-751.37464416,0.00012067,2]
[404638323,1770369032042,-20302.12028111,0.00012067,2]
[404638324,1770369032053,-8825.48216929,0.00012067,2]
[404638325,1770369032065,-166.66,0.00012072,2]
[404638326,1770369032074,-1513.11,0.00012089,2]
[404638327,1770369032083,-1513.11,0.00012111,2]
[404638328,1770369032092,-1513.11,0.00012133,2]
[404638329,1770369032102,-1513.11,0.00012155,2]
[404638330,1770369032111,-1513.11,0.00012177,2]
[404638331,1770369032120,-1513.11,0.00012199,2]
[404638332,1770369032130,-1513.11,0.00012221,2]
[404638333,1770369032139,-1513.11,0.00012243,2]
[404638334,1770369032148,-1513.11,0.00012265,2]
[404638335,1770369032157,-1513.11,0.00012287,2]
[404638336,1770369032167,-1513.11,0.00012309,2]
[404638337,1770369032176,-166.66,0.00012321,2]
[404638338,1770369032186,-1513.11,0.00012331,2]
[404638339,1770369032196,-1513.11,0.00012353,2]
[404638340,1770369032205,-166.66,0.0001257,2]
[404638341,1770369032214,-4442.89,0.00012616,2]
[404638342,1770369032224,-5876.269,0.00012627,2]
[404638343,1770369032234,-2500.0,0.00012627,2]
[404638344,1770369032243,-15158.97790684,0.00012655,2]
[404638345,1770369032252,-3723.88607929,0.00012655,2]
[404638346,1770369032262,-575.31359764,0.00012655,2]
[404638347,1770369032272,-249.83379128,0.00012683,2]
[404638348,1770369032281,-530.66,0.0001269,2]
[404638349,1770369032290,-150.0,0.000127,2]
[404638350,1770369032299,-150.0,0.000127,2]
[404638351,1770369032309,-151.0,0.00012723,2]
[404638352,1770369032319,-151.0,0.00012724,2]
[404638353,1770369032329,-500.0,0.00012726,2]
[404638354,1770369032338,-500.0,0.00012726,2]
[404638355,1770369032348,-259.20118086,0.00012726,2]
[404638356,1770369032366,-313.48406695,0.00012726,2]
[404638357,1770369032378,-244.33450831,0.00012726,2]
[404638358,1770369032387,-500.0,0.00012726,2]
[404638359,1770369032398,-500.0,0.00012726,2]
[404638360,1770369032408,-500.0,0.00012726,2]
[404638361,1770369032418,-500.0,0.00012726,2]
[404638362,1770369032428,-500.0,0.00012726,2]
[404638363,1770369032438,-500.0,0.00012726,2]
[404638364,1770369032447,-500.0,0.00012726,2]
[404638365,1770369032457,-500.0,0.00012726,2]
[404638366,1770369032467,-500.0,0.00012726,2]
[404638367,1770369032476,-500.0,0.00012726,2]
[404638368,1770369032486,-500.0,0.00012726,2]
[404638369,1770369032495,-500.0,0.00012726,2]
[404638370,1770369032505,-500.0,0.00012726,2]
[404638371,1770369032516,-500.0,0.00012726,2]
[404638372,1770369032526,-500.0,0.00012726,2]
[404638373,1770369032535,-500.0,0.00012726,2]
[404638374,1770369032545,-500.0,0.00012726,2]
[404638375,1770369032555,-500.0,0.00012726,2]
[404638376,1770369032566,-500.0,0.00012726,2]
[404638377,1770369032576,-500.0,0.00012726,2]
[404638378,1770369032586,-500.0,0.00012726,2]
[404638379,1770369032596,-500.0,0.00012726,2]
[404638380,1770369032605,-500.0,0.00012726,2]
[404638381,1770369032615,-500.0,0.00012726,2]
[404638382,1770369032626,-500.0,0.00012726,2]
[404638383,1770369032636,-500.0,0.00012726,2]